bitfinex/quotes_SOLUSD_20250529
["timestamp","ask_amount","ask_price","bid_price","bid_amount"]
[1748548182431,22.02732858,166.9,166.89,0.28432314]
[1748548183019,22.02732858,166.9,166.89,24.92594275]
[1748548183215,28.01719305,166.95,166.9,18.64964886]
[1748548183415,5.98944231,166.97,166.91,0.42648471]
[1748548183652,22.02732858,166.92,166.91,0.42648471]
[1748548184721,22.02732858,166.92,166.91,25.06738634]
[1748548185342,5.98838253,166.99,166.93,0.28432314]
[1748548185647,5.98838253,166.99,166.92,18.64964886]
[1748548185648,22.02732858,166.94,166.91,18.79181043]
[1748548185860,22.02732858,166.95,166.91,18.79181043]
[1748548185861,22.02732858,166.92,166.91,18.79181043]
[1748548186362,22.02732858,166.92,166.91,24.92522477]
[1748548186523,22.02732858,166.92,166.91,25.06738634]
[1748548186928,0.3603,166.94,166.92,0.28432314]
[1748548187125,22.02732858,166.93,166.92,0.28432314]
[1748548191162,22.02732858,166.93,166.91,18.64964886]
[1748548191361,22.02732858,166.92,166.91,18.64964886]
[1748548191682,22.02732858,166.92,166.91,18.79181043]
[1748548192485,22.02732858,166.92,166.91,25.06738634]
[1748548192662,22.02732858,166.93,166.92,0.28432314]
[1748548194204,22.02732858,166.93,166.92,6.27521698]
[1748548194548,0.3603,166.94,166.93,44.79181043]
[1748548194859,0.3603,166.94,166.93,54.57181043]
[1748548195072,0.3603,166.94,166.93,54.85613357]
[1748548195579,0.3603,166.94,166.93,57.84469545]
[1748548196292,0.3603,166.94,166.93,63.8352304]
[1748548196770,0.3603,166.94,166.93,85.86255898]
[1748548197349,0.3603,166.94,166.93,63.8352304]
[1748548197549,0.3603,166.94,166.93,85.86255898]
[1748548198071,0.3603,166.94,166.93,63.8352304]
[1748548198984,0.3603,166.94,166.93,28.42964886]
[1748548199153,22.38762858,166.94,166.93,28.42964886]
[1748548199472,22.38762858,166.94,166.93,54.57181043]
[1748548199785,22.38762858,166.94,166.93,35.78]
[1748548200282,15.25108493,167.06,166.97,26.0]
[1748548200482,1.0639,167.1,167.01,26.0]
[1748548200654,7.04841448,167.1,167.06,26.0]
[1748548200977,5.98300825,167.14,167.06,26.0]
[1748548201153,5.98300825,167.14,167.03,78.41913901]
[1748548201154,1.0639,167.15,167.08,26.0]
[1748548201350,22.02732858,167.09,167.08,26.0]
[1748548201550,22.02732858,167.09,167.08,45.07613357]
[1748548201788,22.02732858,167.1,167.09,0.28432314]
[1748548202851,22.02732858,167.1,167.09,18.79181043]
[1748548203251,22.02732858,167.1,167.08,35.78]
[1748548203481,22.02732858,167.09,167.08,54.713972]
[1748548203660,22.02732858,167.09,167.08,54.85613357]
[1748548203976,7.0466932,167.15,167.09,0.14216157]
[1748548204181,22.02732858,167.1,167.09,19.07613357]
[1748548204476,22.02732858,167.13,167.09,19.07613357]
[1748548204676,43.8729,167.19,167.1,19.07613357]
[1748548204677,5.98254182,167.16,167.1,19.07613357]
[1748548204878,5.98254182,167.16,167.1,0.42648471]
[1748548205085,5.98254182,167.16,167.09,18.64964886]
[1748548205458,5.98254182,167.16,167.08,35.92216157]
[1748548205785,5.98254182,167.16,167.08,54.57181043]
[1748548205786,22.02732858,167.09,167.08,54.57181043]
[1748548206480,22.02732858,167.09,167.08,54.85613357]
[1748548206885,14.95573103,167.16,167.09,18.79181043]
[1748548207086,5.98265031,167.15,167.1,0.28432314]
[1748548207478,5.98265031,167.15,167.08,35.78]
[1748548207660,20.93927609,167.15,167.08,35.78]
[1748548208264,22.02732858,167.09,167.08,9.78]
[1748548208484,28.01212719,167.09,167.08,9.78]
[1748548208677,28.01212719,167.09,167.06,0.34736645]
[1748548208992,22.02732858,167.07,167.06,0.34736645]
[1748548209236,22.02732858,167.04,167.03,28.42964886]
[1748548209689,22.02732858,167.04,167.03,28.713972]
[1748548210087,35.8334509,167.04,167.03,28.713972]
[1748548210266,56.78024603,167.09,167.03,28.57181043]
[1748548210465,35.8334509,167.04,167.03,28.42964886]
[1748548210969,35.8334509,167.04,167.03,9.78]
[1748548211165,35.8334509,167.04,166.98,9.78]
[1748548211365,35.8334509,166.99,166.98,28.85613357]
[1748548211564,35.8334509,166.99,166.98,28.42964886]
[1748548211764,35.8334509,166.99,166.98,54.42964886]
[1748548212299,56.78024603,167.09,166.99,18.64964886]
[1748548212485,35.8334509,167.01,167.0,0.42648471]
[1748548212665,35.8334509,167.01,167.0,45.07613357]
[1748548214266,41.81824951,167.09,167.01,18.64964886]
[1748548214579,41.81824951,167.09,167.02,0.28432314]
[1748548214775,56.78024603,167.09,167.02,0.14216157]
[1748548214979,56.78024603,167.09,167.0,26.0]
[1748548215571,26.0,167.08,166.98,9.78]
[1748548215793,35.8334509,166.99,166.98,9.78]
[1748548216774,77.6554185,166.99,166.94,18.64964886]
[1748548217080,35.8334509,166.95,166.94,44.64964886]
[1748548217404,35.8334509,166.95,166.94,45.07613357]
[1748548218271,35.8334509,166.95,166.94,44.64964886]
[1748548218600,35.8334509,166.95,166.94,45.07613357]
[1748548218996,35.8334509,166.95,166.94,44.933972]
[1748548219192,35.8334509,166.95,166.94,45.07613357]
[1748548221081,35.8334509,166.95,166.94,51.06630968]
[1748548221303,5.98743399,167.02,166.98,18.64964886]
[1748548221501,5.98587333,167.06,166.99,0.42648471]
[1748548222217,5.98587333,167.06,167.01,0.28432314]
[1748548222874,5.98515681,167.08,167.01,0.42648471]
[1748548223079,35.8334509,167.02,167.01,25.06379897]
[1748548225297,35.8334509,167.03,167.02,18.64964886]
[1748548225502,35.8334509,167.03,167.02,18.79181043]
[1748548226597,14.96158692,167.1,167.02,6.41379161]
[1748548226798,35.8334509,167.04,167.03,18.79181043]
[1748548227032,35.8334509,167.09,167.04,0.28432314]
[1748548227498,5.98444045,167.1,167.04,0.28432314]
[1748548228198,35.8334509,167.05,167.03,18.79181043]
[1748548228509,35.8334509,167.04,166.99,10.06]
[1748548228679,37.5,167.08,167.0,18.64964886]
[1748548228880,35.8334509,167.01,167.0,18.79181043]
[1748548229194,35.8334509,167.09,167.01,0.28432314]
[1748548229382,73.3334509,167.09,167.01,0.28432314]
[1748548229778,5.98515681,167.08,167.02,18.79181043]
[1748548230284,35.8334509,167.03,167.02,18.79181043]
[1748548232396,5.98607547,167.06,167.02,18.79181043]
[1748548232591,35.8334509,167.03,167.02,18.79181043]
[1748548232787,35.8334509,167.03,167.02,25.06344047]
[1748548233024,35.8334509,167.09,167.03,0.28432314]
[1748548233025,5.98522263,167.08,167.03,0.28432314]
[1748548233235,35.8334509,167.04,167.03,0.28432314]
[1748548233389,5.98469051,167.1,167.03,0.28432314]
[1748548233390,35.8334509,167.05,167.03,0.28432314]
[1748548233593,35.8334509,167.04,167.03,0.28432314]
[1748548234205,35.8334509,167.04,167.03,6.27127159]
[1748548234401,35.8334509,167.04,167.03,25.06308202]
[1748548234908,35.8334509,167.04,167.03,19.07613357]
[1748548235106,35.8334509,167.04,167.03,25.06308202]
[1748548235321,35.8334509,167.05,167.04,18.79181043]
[1748548236694,35.8334509,167.06,167.04,51.0627236]
[1748548236901,5.98300825,167.14,167.08,18.79181043]
[1748548237219,35.8334509,167.09,167.08,18.79181043]
[1748548237800,35.8334509,167.09,167.08,19.07613357]
[1748548238101,5.98515681,167.08,167.05,10.06]
[1748548238324,35.8334509,167.06,167.05,10.06]
[1748548239101,35.8334509,167.06,167.01,18.64964886]
[1748548239322,35.8334509,167.02,167.01,44.64964886]
[1748548239798,35.8334509,167.02,167.01,45.07613357]
[1748548240118,5.98515681,167.08,167.02,0.14216157]
[1748548240725,5.98515681,167.08,167.01,44.64964886]
[1748548240897,5.98515681,167.08,167.02,0.14216157]
[1748548241099,20.94804883,167.08,167.02,0.14216157]
[1748548241299,35.8334509,167.03,167.02,0.14216157]
[1748548242899,16.02486839,167.11,167.02,6.41379161]
[1748548243108,35.8334509,167.03,167.02,25.06344047]
[1748548243632,5.98444045,167.1,167.04,0.28432314]
[1748548243801,35.8334509,167.05,167.04,26.28432314]
[1748548244826,35.8334509,167.05,167.04,51.0627236]
[1748548245011,35.8334509,167.05,167.04,45.07613357]
[1748548245406,36.1928509,167.05,167.04,51.0627236]
[1748548245625,0.3594,167.05,167.04,51.0627236]
[1748548248411,0.3594,167.05,167.04,59.2074236]
[1748548249527,36.1928509,167.05,167.04,53.22083357]
[1748548250127,36.1928509,167.05,167.04,59.2074236]
[1748548250333,0.3594,167.05,167.04,59.2074236]
[1748548253105,36.1928509,167.05,167.04,52.79434886]
[1748548253313,36.1928509,167.05,167.04,46.17614886]
[1748548253533,36.1928509,167.05,167.04,45.07613357]
[1748548253833,36.1928509,167.05,167.04,18.79181043]
[1748548254035,36.1928509,167.05,167.04,44.933972]
[1748548254235,36.1928509,167.05,167.04,45.07613357]
[1748548255035,0.3594,167.05,167.04,25.0627236]
[1748548259125,0.3594,167.05,167.04,60.8961745]
[1748548261038,0.2173,167.05,167.04,60.8961745]
[1748548261225,19.58346624,167.19,167.09,0.42648471]
[1748548261226,35.8334509,167.12,167.09,0.42648471]
[1748548261434,35.8334509,167.12,167.11,19.07613357]
[1748548261615,5.98157674,167.18,167.15,0.14216157]
[1748548261821,35.8334509,167.16,167.15,0.14216157]
[1748548262028,5.98157674,167.18,167.15,0.14216157]
[1748548262742,14.5208626,167.19,167.15,0.14216157]
[1748548262944,21.96130886,167.16,167.15,0.14216157]
[1748548263753,21.96130886,167.16,167.13,26.14216157]
[1748548264054,21.96130886,167.14,167.13,44.79181043]
[1748548264253,21.96130886,167.14,167.13,18.79181043]
[1748548264621,21.96130886,167.14,167.13,25.05949981]
[1748548264824,85.8523177,167.22,167.14,18.79181043]
[1748548265024,21.96130886,167.15,167.14,18.79181043]
[1748548265252,21.96130886,167.15,167.14,44.79181043]
[1748548266246,21.96130886,167.15,167.14,26.14216157]
[1748548266563,21.96130886,167.15,167.12,24.63336607]
[1748548266564,49.90526803,167.15,167.1,9.98]
[1748548266775,21.96130886,167.11,167.1,28.62964886]
[1748548266940,21.96130886,167.11,167.1,28.77181043]
[1748548267262,21.96130886,167.11,167.1,28.913972]
[1748548267457,21.96130886,167.11,167.1,9.98]
[1748548267968,1.0639,167.17,167.11,18.64964886]
[1748548268169,5.98086124,167.2,167.12,0.42648471]
[1748548268359,5.98086124,167.2,167.15,0.14216157]
[1748548268568,7.04454398,167.21,167.15,0.14216157]
[1748548269463,21.96130886,167.16,167.15,0.14216157]
[1748548272386,27.94360127,167.16,167.1,45.06534564]
[1748548272565,5.98229241,167.16,167.12,0.14216157]
[1748548272875,43.92261772,167.13,167.1,9.98]
[1748548273042,21.96130886,167.11,167.1,9.98]
[1748548273671,21.96130886,167.11,167.04,96.08]
[1748548274050,21.96130886,167.05,167.04,128.0665373]
[1748548274252,21.96130886,167.05,167.04,122.08]
[1748548274665,21.96130886,167.05,167.04,141.15613357]
[1748548275065,21.96130886,167.05,167.04,143.93558983]
[1748548275251,21.96130886,167.05,167.04,143.65126669]
[1748548275770,21.96130886,167.05,167.04,143.79342826]
[1748548275975,35.82840579,167.05,167.04,143.93558983]
[1748548276273,35.82840579,167.05,167.04,144.0777514]
[1748548276646,35.82840579,167.05,167.04,10.06216157]
[1748548277074,35.82840579,167.05,167.04,9.92]
[1748548277375,35.82840579,167.05,167.04,10.06216157]
[1748548279660,41.81331945,167.09,167.05,0.14216157]
[1748548279965,35.82840579,167.06,167.05,0.14216157]
[1748548281173,35.82840579,167.06,167.04,9.92]
[1748548281659,35.82840579,167.05,167.04,9.92]
[1748548282478,41.81463745,167.05,167.04,9.92]
[1748548284857,35.82840579,167.05,167.04,9.92]
[1748548285659,35.82840579,167.05,167.04,10.06216157]
[1748548286075,35.82840579,167.05,167.04,28.99613357]
[1748548286575,35.82840579,167.05,167.04,10.06216157]
[1748548286786,41.81463745,167.05,167.04,9.92]
[1748548286973,35.82840579,167.05,167.04,9.92]
[1748548288765,35.82840579,167.03,167.0,9.92]
[1748548288980,35.82840579,167.01,167.0,35.92]
[1748548289701,5.98623166,167.05,167.0,36.06216157]
[1748548289865,35.82840579,167.01,167.0,54.99613357]
[1748548290405,73.06840579,167.09,167.01,0.14216157]
[1748548290562,35.82840579,167.02,167.01,0.14216157]
[1748548291862,41.81592451,167.02,167.0,9.92]
[1748548292065,71.65681158,167.01,166.95,11.4983]
[1748548292302,35.82840579,166.96,166.95,11.4983]
[1748548292476,35.82840579,166.96,166.95,9.92]
[1748548292787,35.82840579,166.96,166.95,54.56964886]
[1748548293183,35.82840579,166.96,166.95,9.92]
[1748548293364,41.8180236,166.96,166.92,26.0]
[1748548293700,5.98961781,166.96,166.93,0.14216157]
[1748548293894,35.82840579,166.94,166.93,26.0]
[1748548294563,35.82840579,166.94,166.93,44.79181043]
[1748548294764,35.82840579,166.94,166.93,45.07613357]
[1748548294963,43.207328,167.02,166.93,45.07613357]
[1748548294964,43.207328,167.02,166.95,0.14216157]
[1748548295183,35.82840579,166.96,166.95,0.14216157]
[1748548296090,22.01240941,166.96,166.95,0.14216157]
[1748548296289,44.02481882,166.96,166.95,0.14216157]
[1748548296867,44.02481882,166.96,166.95,6.13197888]
[1748548297063,22.01240941,166.96,166.95,6.13197888]
[1748548297417,48.01240941,167.04,166.97,0.14216157]
[1748548297418,22.01240941,167.04,166.97,0.14216157]
[1748548297706,22.01240941,167.04,167.0,0.14216157]
[1748548298581,22.01240941,167.04,167.0,26.0]
[1748548299094,22.01240941,167.01,167.0,26.0]
[1748548300187,37.24,167.06,167.0,26.14216157]
[1748548300472,14.96168304,167.1,167.0,26.14216157]
[1748548300473,22.01240941,167.01,167.0,26.14216157]
[1748548302596,22.01240941,167.01,166.97,28.853972]
[1748548302597,28.00019533,167.01,166.97,9.92]
[1748548302774,22.01240941,166.98,166.97,9.92]
[1748548303102,22.01240941,166.98,166.97,10.06216157]
[1748548304000,35.86377771,166.98,166.97,10.06216157]
[1748548308782,35.86377771,166.98,166.97,28.99613357]
[1748548309001,35.86377771,166.98,166.97,34.9852334]
[1748548309206,35.86377771,166.98,166.97,28.99613357]
[1748548310118,35.86377771,166.98,166.97,34.9852334]
[1748548310309,47.36377771,167.09,167.01,0.14216157]
[1748548310609,35.86377771,167.02,167.01,19.07613357]
[1748548311409,35.86377771,167.02,167.01,25.06379897]
[1748548311590,18.9518,167.15,167.05,0.14216157]
[1748548311807,18.9518,167.15,167.05,19.07613357]
[1748548311808,35.86377771,167.06,167.05,19.07613357]
[1748548313909,35.86377771,167.06,167.05,25.06236523]
[1748548314597,35.86377771,167.06,167.05,19.07613357]
[1748548315208,35.86377771,167.06,167.05,25.06236523]
[1748548316318,5.98300825,167.14,167.08,26.0]
[1748548316485,5.98229241,167.16,167.12,26.0]
[1748548316694,35.86377771,167.13,167.12,26.0]
[1748548317718,35.86377771,167.13,167.1,9.82]
[1748548318010,35.86377771,167.11,167.1,9.96216157]
[1748548318791,35.86377771,167.11,167.1,35.96216157]
[1748548319408,5.9832409,167.14,167.1,35.96216157]
[1748548319617,35.86377771,167.11,167.1,35.96216157]
[1748548320286,5.98253074,167.16,167.11,0.14216157]
[1748548320491,35.86377771,167.12,167.11,0.14216157]
[1748548321191,35.86377771,167.12,167.1,9.82]
[1748548321192,41.84750197,167.12,167.1,9.82]
[1748548321525,35.86377771,167.11,167.1,9.82]
[1748548323828,41.84786005,167.11,167.08,26.14216157]
[1748548324032,35.86377771,167.09,167.05,9.82]
[1748548324189,35.86377771,167.06,167.05,9.82]
[1748548325194,41.84965104,167.06,167.05,9.82]
[1748548325403,52.12020585,167.11,167.05,9.82]
[1748548325593,35.86377771,167.06,167.05,9.82]
[1748548327208,41.84965104,167.06,167.05,9.82]
[1748548329739,41.84965104,167.06,167.03,0.14216157]
[1748548329925,5.98587333,167.06,167.03,0.14216157]
[1748548330128,21.99294683,167.04,167.03,0.14216157]
[1748548330327,21.99294683,167.04,167.02,26.0]
[1748548331498,27.97986486,167.04,167.02,26.0]
[1748548332122,27.97986486,167.04,167.01,0.14216157]
[1748548332303,21.99294683,167.02,167.01,0.14216157]
[1748548333734,27.98025373,167.02,167.01,0.14216157]
[1748548336617,21.99294683,167.04,167.02,0.14216157]
[1748548336865,21.99294683,167.03,167.02,0.14216157]
[1748548337636,5.98661487,167.04,167.02,0.14216157]
[1748548337804,21.99294683,167.03,167.02,0.14216157]
[1748548338008,21.99294683,167.03,167.0,35.82]
[1748548338341,21.99294683,167.01,167.0,9.82]
[1748548338718,27.98061223,167.01,167.0,9.96216157]
[1748548339434,21.99294683,167.01,167.0,9.96216157]
[1748548339641,21.99294683,167.01,166.94,7.956]
[1748548339812,21.99294683,167.04,166.97,26.0]
[1748548340005,21.99294683,166.98,166.97,26.0]
[1748548340315,21.99294683,166.98,166.97,26.14216157]
[1748548340634,21.99294683,166.98,166.97,26.0]
[1748548341022,21.99294683,166.98,166.97,26.14216157]
[1748548341217,27.98168799,166.98,166.96,9.8]
[1748548341525,21.99294683,166.97,166.96,9.94216157]
[1748548343647,49.97499349,166.97,166.96,9.8]
[1748548343863,49.97499349,166.97,166.92,9.8]
[1748548344022,49.97499349,166.97,166.88,9.8]
[1748548344023,21.99294683,166.93,166.88,9.8]
[1748548344380,21.99294683,166.89,166.88,15.79232981]
[1748548344555,21.99294683,166.89,166.88,52.97232981]
[1748548344732,21.99294683,166.89,166.88,28.44964886]
[1748548345249,21.99294683,166.95,166.89,18.64964886]
[1748548345552,21.99294683,166.9,166.89,19.07613357]
[1748548345950,21.99294683,166.9,166.89,0.14216157]
[1748548346119,21.99294683,166.9,166.88,35.8]
[1748548346324,21.99294683,166.89,166.88,54.87613357]
[1748548346839,21.99294683,166.89,166.88,60.86846338]
[1748548347339,9.8,166.99,166.91,26.0]
[1748548347548,21.99294683,166.95,166.92,0.14216157]
[1748548347950,27.98286642,166.95,166.92,0.14216157]
[1748548348743,21.99294683,166.93,166.92,0.14216157]
[1748548349653,21.99294683,166.93,166.91,26.0]
[1748548349855,21.99294683,166.92,166.91,26.0]
[1748548351062,21.99294683,166.92,166.89,0.14216157]
[1748548351256,21.99294683,166.9,166.89,26.14216157]
[1748548351899,21.99294683,166.9,166.88,9.8]
[1748548352041,43.98589366,166.89,166.84,18.64964886]
[1748548352247,21.99294683,166.85,166.84,18.64964886]
[1748548352943,21.99294683,166.85,166.84,19.07613357]
[1748548353137,21.99294683,166.85,166.84,18.79181043]
[1748548353383,21.99294683,166.85,166.84,24.78557691]
[1748548353534,21.99294683,166.85,166.84,18.79181043]
[1748548353871,21.99294683,166.85,166.84,45.07613357]
[1748548355271,21.99294683,166.85,166.84,51.06990005]
[1748548355636,37.2,166.94,166.86,26.0]
[1748548355972,5.99053495,166.93,166.87,0.14216157]
[1748548356967,21.99294683,166.88,166.86,26.0]
[1748548357177,43.98589366,166.87,166.86,26.0]
[1748548357738,43.98589366,166.87,166.84,0.14216157]
[1748548357965,21.99294683,166.85,166.84,0.14216157]
[1748548360258,21.99294683,166.85,166.83,38.77017092]
[1748548360459,21.99294683,166.84,166.78,23.48961087]
[1748548360674,21.99294683,166.79,166.78,30.12154886]
[1748548360981,21.99294683,166.79,166.78,9.82]
[1748548361867,21.99294683,166.79,166.78,9.96216157]
[1748548362246,21.99294683,166.79,166.78,9.82]
[1748548362972,21.99294683,166.79,166.78,9.96216157]
[1748548363136,21.99294683,166.79,166.78,15.95808434]
[1748548363458,21.99294683,166.79,166.78,9.82]
[1748548363975,21.99294683,166.79,166.77,0.14216157]
[1748548364168,43.98589366,166.78,166.76,26.0]
[1748548364469,43.98589366,166.77,166.76,26.14216157]
[1748548364670,43.98589366,166.77,166.76,26.0]
[1748548364866,43.98589366,166.77,166.76,26.14216157]
[1748548365042,43.98589366,166.77,166.76,26.0]
[1748548365490,5.99412575,166.83,166.77,0.14216157]
[1748548365778,21.99294683,166.78,166.77,0.14216157]
[1748548366667,43.98589366,166.78,166.76,26.0]
[1748548366961,21.99294683,166.77,166.76,26.14216157]
[1748548367738,43.98589366,166.77,166.76,26.0]
[1748548368346,43.98589366,166.77,166.74,1.76476157]
[1748548368347,49.98235277,166.77,166.74,0.14216157]
[1748548368653,49.98235277,166.77,166.73,28.733972]
[1748548368654,21.99294683,166.75,166.73,31.52263735]
[1748548368967,21.99294683,166.74,166.73,31.80696049]
[1748548369557,21.99294683,166.74,166.73,28.87613357]
[1748548370464,21.99294683,166.74,166.73,34.87385443]
[1748548372938,21.99294683,166.74,166.72,26.0]
[1748548373140,21.99294683,166.73,166.72,26.0]
[1748548373373,21.99294683,166.73,166.69,5.99906068]
[1748548373670,21.99294683,166.7,166.69,45.07613357]
[1748548373865,21.99294683,166.7,166.69,44.64964886]
[1748548374393,21.99294683,166.7,166.69,44.79181043]
[1748548374558,21.99294683,166.7,166.69,50.93313211]
[1748548374749,21.99294683,166.7,166.69,26.0]
[1748548375390,21.99294683,166.71,166.7,0.14216157]
[1748548375666,21.99294683,166.71,166.7,45.07613357]
[1748548375872,5.99520383,166.8,166.71,0.28432314]
[1748548376168,5.99520383,166.8,166.76,0.14216157]
[1748548376367,5.99520383,166.8,166.75,26.0]
[1748548376572,5.99448507,166.82,166.75,26.0]
[1748548377355,21.99294683,166.76,166.75,51.07309254]
[1748548377665,21.99294683,166.76,166.75,45.07613357]
[1748548380065,21.99294683,166.76,166.75,51.07313506]
[1748548380265,24.80341109,166.86,166.76,19.07613357]
[1748548380471,21.99294683,166.77,166.76,19.07613357]
[1748548381363,21.99294683,166.77,166.76,0.14216157]
[1748548382486,43.98589366,166.77,166.73,1.5334]
[1748548382664,21.99294683,166.74,166.73,26.0]
[1748548383184,21.99294683,166.74,166.72,9.82]
[1748548383552,42.98001193,166.77,166.69,6.4775]
[1748548383553,27.98930617,166.77,166.69,6.4775]
[1748548383755,27.98930617,166.77,166.71,19.07613357]
[1748548384362,27.98930617,166.77,166.71,0.14216157]
[1748548384682,27.98930617,166.77,166.7,31.99880023]
[1748548384880,27.98930617,166.77,166.71,0.14216157]
[1748548385083,21.99294683,166.72,166.71,32.14060197]
[1748548385280,9.82,166.81,166.73,0.42648471]
[1748548385598,5.99487033,166.81,166.75,0.14216157]
[1748548386780,21.99294683,166.76,166.75,0.14216157]
[1748548387081,21.99294683,166.76,166.69,6.4775]
[1748548387283,21.99294683,166.7,166.69,25.12714886]
[1748548387583,21.99294683,166.7,166.69,51.12714886]
[1748548387765,21.99294683,166.7,166.69,51.55363357]
[1748548388084,21.99294683,166.7,166.69,51.12714886]
[1748548388286,21.99294683,166.77,166.69,51.12714886]
[1748548388471,21.99294683,166.7,166.69,57.55279368]
[1748548388674,21.99294683,166.7,166.69,45.07613357]
[1748548389283,21.99294683,166.7,166.69,51.07529368]
[1748548394664,21.99294683,166.7,166.69,26.0]
[1748548394880,21.99294683,166.7,166.68,0.14216157]
[1748548395187,21.99294683,166.69,166.68,0.14216157]
[1748548395401,23.05684683,166.77,166.68,18.933972]
[1748548395604,1.0639,166.77,166.69,0.14216157]
[1748548395763,21.99294683,166.7,166.69,0.14216157]
[1748548396807,21.99294683,166.7,166.69,6.42564482]
[1748548397090,27.98947522,166.77,166.71,26.0]
[1748548397297,27.98947522,166.77,166.72,0.14216157]
[1748548398460,21.99294683,166.73,166.72,0.14216157]
[1748548399692,24.80807993,166.8,166.72,25.07421418]
[1748548399877,5.99556328,166.79,166.72,25.07421418]
[1748548400062,21.99294683,166.73,166.72,25.07421418]
[1748548400265,9.82,166.8,166.73,45.07613357]
[1748548400485,21.99294683,166.75,166.74,0.14216157]
[1748548401803,21.99294683,166.75,166.74,25.07349473]
[1748548403089,21.99294683,166.75,166.73,26.0]
[1748548403289,21.99294683,166.74,166.73,45.07613357]
[1748548403585,21.99294683,166.74,166.73,51.07381882]
[1748548404287,5.99506962,166.81,166.74,0.14216157]
[1748548404489,21.99294683,166.75,166.74,0.14216157]
[1748548405764,21.99294683,166.75,166.73,26.0]
[1748548405977,21.99294683,166.74,166.73,26.14216157]
[1748548406170,21.99294683,166.74,166.71,37.5801]
[1748548406374,21.99294683,166.74,166.72,0.14216157]
[1748548406571,21.99294683,166.74,166.71,37.5801]
[1748548406971,21.99294683,166.74,166.72,0.14216157]
[1748548407768,21.99294683,166.73,166.72,19.07613357]
[1748548408085,21.99294683,166.73,166.72,25.07416884]
[1748548409600,21.99294683,166.73,166.72,19.07613357]
[1748548410270,21.99294683,166.73,166.72,0.14216157]
[1748548411933,5.99673167,166.76,166.72,0.14216157]
[1748548412078,21.99294683,166.73,166.72,0.14216157]
[1748548412962,21.99294683,166.73,166.72,6.14024218]
[1748548413163,21.99294683,166.73,166.72,25.07421418]
[1748548414910,21.99294683,166.73,166.72,19.07613357]
[1748548420416,21.99294683,166.73,166.72,25.07421418]
[1748548421998,21.99294683,166.73,166.72,19.07613357]
[1748548422508,21.99294683,166.73,166.71,26.0]
[1748548422819,21.99294683,166.72,166.71,26.14216157]
[1748548423026,21.99294683,166.72,166.71,0.14216157]
[1748548423321,21.99294683,166.72,166.69,9.96]
[1748548423617,21.99294683,166.7,166.66,34.98399001]
[1748548423809,14.9934029,166.74,166.67,0.14216157]
[1748548424115,21.99294683,166.68,166.67,24.79158334]
[1748548424323,21.99294683,166.68,166.67,25.07590648]
[1748548425219,5.99664188,166.76,166.67,25.07590648]
[1748548425399,21.99294683,166.68,166.67,25.07590648]
[1748548427295,5.99784853,166.73,166.68,0.28432314]
[1748548427501,21.99294683,166.69,166.68,0.28432314]
[1748548429027,21.99294683,166.69,166.67,24.79158334]
[1748548429028,21.99294683,166.69,166.67,18.79181043]
[1748548429214,21.99294683,166.68,166.67,19.07613357]
[1748548430330,21.99294683,166.68,166.67,25.07601357]
[1748548431227,49.98541369,166.68,166.64,9.96]
[1748548431639,21.99294683,166.65,166.64,9.96]
[1748548431810,21.99294683,166.65,166.64,29.03613357]
[1748548432009,5.99772086,166.73,166.65,19.07613357]
[1748548432236,21.99294683,166.66,166.65,25.07673363]
[1748548432435,21.99294683,166.66,166.65,0.42648471]
[1748548432642,21.99294683,166.66,166.65,6.42708477]
[1748548433418,21.99294683,166.66,166.65,25.07673363]
[1748548434035,21.99294683,166.66,166.65,28.09664196]
[1748548435542,5.99856342,166.71,166.67,0.14216157]
[1748548435748,52.25370485,166.74,166.67,0.14216157]
[1748548435749,21.99294683,166.68,166.67,0.14216157]
[1748548436547,21.99294683,166.68,166.67,6.14204157]
[1748548436928,21.99294683,166.68,166.67,0.14216157]
[1748548438025,21.99294683,166.68,166.67,6.14204157]
[1748548438513,21.99294683,166.68,166.67,0.14216157]
[1748548439047,21.99294683,166.68,166.67,6.42636471]
[1748548439344,21.99294683,166.68,166.67,25.07601357]
[1748548439846,21.99294683,166.68,166.67,19.07613357]
[1748548440042,21.99294683,166.68,166.67,25.07601357]
[1748548440236,21.99294683,166.68,166.67,19.07613357]
[1748548440440,21.99294683,166.68,166.64,9.96]
[1748548440758,21.99294683,166.68,166.65,0.14216157]
[1748548440920,37.26,166.74,166.65,18.933972]
[1748548441121,37.26,166.74,166.66,0.14216157]
[1748548441844,5.99772086,166.73,166.66,0.14216157]
[1748548442035,21.99294683,166.67,166.66,0.14216157]
[1748548442351,21.99294683,166.67,166.66,6.28456314]
[1748548443345,5.99779249,166.73,166.67,0.14216157]
[1748548443542,21.99294683,166.68,166.67,44.933972]
[1748548443735,21.99294683,166.68,166.67,45.07613357]
[1748548444250,21.99294683,166.7,166.68,19.07613357]